Cogmind - Beta 16 --- EXPLORER MODE // 2025.11.17 @ 11:37:10 Player: K.K.Y. Result: Destroyed by 8G-QBL(R) with Subdweller Machine Gun Performance ------------- Evolutions (0) 0 Regions Visited (2) 400 Robots Destroyed (36) 180 Value Destroyed (895) 895 Prototype IDs (14) 280 Alien Tech Used (0) 0 Bonus (0) 0 TOTAL SCORE: 1755 Bonus ------- None Cogmind --------- Core Integrity 0/250 Matter 294/300 Energy 98/100 System Corruption 1% Temperature Cool (0) Movement Treading (460) Ox3 Location -10/Subcaves Parts ------- > --- POWER (1) -------- Subdweller Power Source > --- PROPULSION (3) --- Spiked Treads > --- UTILITY (2) ------ Huge Storage Unit Weight Redist. System (fused) > --- WEAPON (2) ------- Heavy Battle Rifle > --- INVENTORY (25) --- Flightbrick Humpback Transport Network Coupler Scrap Shield Battle Cannon SUBCON Basin (Full) Peak State ------------ > --- POWER ------------ Subdweller Power Source > --- PROPULSION ------- Spiked Treads > --- UTILITY ---------- Huge Storage Unit Weight Redist. System > --- WEAPON ----------- Heavy Battle Rifle Battle Cannon > --- INVENTORY -------- Flightbrick Humpback Transport Network Coupler Scrap Shield Battle Cannon SUBCON Basin [Rating: 35] Favorites ----------- Power Ion Engine Engine Ion Engine Propulsion Light Treads Treads Light Treads Utility Huge Storage Unit Device Weight Redist. System Storage Huge Storage Unit Weapon Hammer Energy Gun EM Pulse Gun Ballistic Gun Heavy Battle Rifle Ballistic Cannon Battle Cannon Special Weapon Mining Laser Impact Weapon Hammer Build | -11 -10 -10 ------- Run | Yrd Mat Sub Slots Evolved 1 | . 1 . Power . | . . . Propulsion 1 | . 1 . Utility . | . . . Weapon . | . . . Parts Attached 18 | 6 4 8 Power 2 | 1 . 1 Engine 2 | 1 . 1 Core . | . . . Reactor . | . . . Propulsion 6 | 2 2 2 Treads 6 | 2 2 2 Leg . | . . . Wheel . | . . . Hover . | . . . Flight . | . . . Utility 3 | 1 1 1 Device 1 | . . 1 Storage 2 | 1 1 . Processor . | . . . Hackware . | . . . Protection . | . . . Artifact . | . . . Weapon 7 | 2 1 4 Energy Gun 2 | 2 . . Energy Cannon . | . . . Ballistic Gun 2 | . . 2 Ballistic Cannon 1 | . . 1 Launcher . | . . . Special Weapon 1 | . 1 . Impact Weapon 1 | . . 1 Slashing Weapon . | . . . Piercing Weapon . | . . . Special Melee Weapon . | . . . Unidentified Prototypes . | . . . Parts Lost 6 | . . 6 Power 1 | . . 1 Propulsion 3 | . . 3 Utility . | . . . Weapon 2 | . . 2 Highest Loss Streak 3 | . . 3 To Critical Strikes . | . . . Average Backups 7 | 1 5 8 Power . | . . . Propulsion 1 | . 1 1 Utility 1 | . 1 2 Weapon 3 | 1 3 4 Tool/Special . | . . . Unused Backups 8 | . . 8 Power . | . . . Propulsion 2 | . . 2 Utility 3 | . . 3 Weapon 3 | . . 3 Tool/Special . | . . . Average Slot Usage (%) 78 | . 83 76 Engine 8 | . 12 7 Treads 30 | . 36 26 Device 7 | . . 11 Storage 12 | . 12 12 Energy Gun 6 | . 18 . Ballistic Gun 4 | . . 6 Special Weapon 2 | . 2 2 Impact Weapon 4 | . . 6 Peak Build Rating 35 | 6 8 35 Average Rating 14 | 4 6 18 On Entrance 4 | . 6 7 Avg Prop Armor Cover (%) . | . . . Naked Turns . | . . . Heaviest Build 92 | 19 89 92 Greatest Support 66 | 40 60 66 Greatest Overweight (x) 3 | 1 2 3 Average Overweight (x) 1 | . . 1 Largest Inventory Capacity 25 | 10 25 25 Average Capacity 24 | 8 24 25 Most Carried 25 | 5 9 25 Average Carried 12 | 1 5 16 Final Capacity 25 | 10 25 25 Final Carried 25 | 1 9 25 Class Distribution -------------------- 100% | Hacker-Mutant Dominant Class ---------------- Hacker-Mutant | -10/Materials Hacker-Mutant | -10/Subcaves Resources | -11 -10 -10 ----------- Run | Yrd Mat Sub Matter Collected 622 | 215 127 280 Remotely . | . . . Salvage Created 1110 | . 646 464 Parts 83 | . 49 34 Haulers Intercepted 2 | . 2 . Recyclers Shooed . | . . . Parts Field Recycled . | . . . Retrieved Matter . | . . . Parts Self-Destructed . | . . . Prevented . | . . . Parts Restored . | . . . Kills | -11 -10 -10 ------- Run | Yrd Mat Sub Combat Hostiles Destroyed 29 | . 14 15 Melee 6 | . . 6 Guns 20 | . 12 8 AOE 1 | . 1 . Classes Destroyed 6 | . 4 2 Hauler 2 | . 2 . Turret 2 | . . 2 Watcher 3 | . 3 . Swarmer 11 | . 4 7 Grunt 10 | . 10 . Subdweller 8 | . . 8 Best Kill Streak 4 | . 3 4 Combat Bots Only 4 | . 3 4 Max Kills in Single Turn 1 | . 1 1 Gunslinging . | . . . Exploded 1 | . 1 . Melee 1 | . . 1 Uniques/NPCs Destroyed . | . . . Combat | -11 -10 -10 -------- Run | Yrd Mat Sub Hostile Shots Fired 272 | . 40 232 Missed 78 | . 8 70 Hits 194 | . 32 162 Projectile 194 | . 32 162 Critical Strikes 5 | . . 5 Damage Taken 1524 | . 201 1323 Core 257 | . 19 238 Absorbed by Shields . | . . . Ignored by Resistances 948 | . 134 814 Core Remaining (%) 100 | 100 . . Volleys Fired 96 | . 53 43 Largest 2 | . 2 1 Hottest 100 | . 100 100 Shots Fired 126 | . 82 44 Gun 102 | . 62 40 Cannon . | . . . Launcher . | . . . Special 24 | . 20 4 Kinetic 40 | . . 40 Thermal 53 | . 49 4 Explosive . | . . . Electromagnetic 33 | . 33 . Robot Hit Streak 28 | . 15 28 Robot Miss Streak 1 | . 1 1 Penetration Max . | . . . Secondary Targets 2 | . 2 . Max Gunslinging Chain 1 | . 1 . Shots Hit Robots 108 | . 45 63 Core Hits 53 | . 28 25 Critical Kills 2 | . . 2 Critical Parts Destroyed 1 | . . 1 Critical Strikes 8 | . 3 5 Burn 2 | . 2 . Corrupt 1 | . 1 . Smash 5 | . . 5 Melee Attacks 52 | . . 52 Impact 52 | . . 52 Slashing . | . . . Piercing . | . . . Sneak Attacks 1 | . . 1 Combat Hostiles . | . . . Follow-up Attacks . | . . . Damage Inflicted 1845 | . 709 1136 Guns 1108 | . 588 520 Cannons . | . . . Explosions 112 | . 112 . Melee 592 | . . 592 Ramming 9 | . 9 . Kinetic 520 | . . 520 Thermal 338 | . 314 24 Explosive . | . . . Electromagnetic 386 | . 386 . Impact 592 | . . 592 Slashing . | . . . Piercing . | . . . Highest Corruption 1 | . 1 1 Average Corruption 1 | . 1 1 Corruption Purged . | . . . Corruption Blocked . | . . . Effects 47 | . 8 39 Message Errors 10 | . 2 8 Matter Fused 9 | . 2 7 Heat Flow Errors 4 | . . 4 Energy Discharges 7 | . 2 5 Parts Rejected 1 | . . 1 Parts Fused 1 | . . 1 Data Loss (minor) 9 | . 1 8 Data Loss (major) 3 | . . 3 Misfires 1 | . . 1 Alerts 2 | . 1 1 Overload Shots . | . . . Overflow Damage 34 | . . 34 Projectiles . | . . . Explosions . | . . . Melee 34 | . . 34 Knockbacks 2 | . . 2 Impact 2 | . . 2 Kinetic . | . . . Secondary . | . . . Self-Inflicted Damage 11 | . 11 . Shots 2 | . 2 . Rammed 1 | . 1 . Targets Rammed 1 | . 1 . Kicked . | . . . Crushed . | . . . Highest Temperature 273 | . 228 273 Average Temperature 51 | . 42 111 Received Heat Transfer 1099 | . 126 973 Siege Activations . | . . . Martial Activations . | . . . Shielding Activations . | . . . Robots Disrupted . | . . . Combat Hostiles . | . . . Robots Corrupted 2 | . 1 1 Combat Hostiles 2 | . 1 1 Parts Fried 1 | . . 1 Impact Corruptions 3 | . . 3 Robots Melted . | . . . Combat Hostiles . | . . . Parts Melted 2 | . . 2 Heat Transferred 990 | . 940 50 Parts Sabotaged . | . . . Parts Stolen . | . . . Parts Stripped . | . . . Power Chain Reactions 3 | . 3 . Alert | -11 -10 -10 ------- Run | Yrd Mat Sub Maximum Alert Level . | . . . Low Security (%) 100 | 100 100 . Level 1 . | . . . Level 2 . | . . . Level 3 . | . . . Level 4 . | . . . Level 5 . | . . . High Security . | . . . Max Security . | . . . Peak Influence 82 | . 82 . Initial . | . . . Average 9 | . 9 . Influence Increases 746 | . 441 305 Destroy 0b10 Robot/C 460 | . 280 180 Destroy 0b10 Robot/NC 25 | . 25 . Destroy Leader 90 | . 70 20 Trap Triggered on 0b10 10 | . 10 . Successful Hack 29 | . 29 . Destroy Structure 12 | . 12 . Lose Combat Pursuer 120 | . 15 105 Influence Decreases 746 | . 441 305 Time Decay 719 | . 414 305 Purge Threat 27 | . 27 . Squads Dispatched 3 | . 3 . Investigation 3 | . 3 . Extermination . | . . . Reinforcement . | . . . Assault . | . . . Garrison . | . . . Intercept . | . . . Searches Triggered . | . . . Construction Impeded . | . . . Haulers Reinforced . | . . . Active Scanning Responses . | . . . Cargo Convoy Interrupts . | . . . Stealth | -11 -10 -10 --------- Run | Yrd Mat Sub Distress Signals 1 | . 1 . Communications Jammed . | . . . Distress Signals . | . . . Times Spotted 37 | . 17 20 Peak Tracking Total 4 | . 2 4 Tactical Retreats 4 | . 1 3 Traps | -11 -10 -10 ------- Run | Yrd Mat Sub Traps Triggered 3 | . 2 1 Indirectly . | . . . Trap Hack Attempts . | . . . Triggered . | . . . Disarmed 9 | . 9 . Reprogrammed 6 | . 6 . Reused 1 | . 1 . Traps Extracted . | . . . Installed . | . . . Triggered 1 | . 1 . Machines | -11 -10 -10 ---------- Run | Yrd Mat Sub Machines Disabled 2 | . . 2 Max in Single Turn 1 | . . 1 Machines Repaired . | . . . Machines Dismantled . | . . . Machines Sabotaged . | . . . Overloaded Fab Kills . | . . . Hacking | -11 -10 -10 --------- Run | Yrd Mat Sub Machines Accessed 10 | . 6 4 Terminals 6 | . 6 . Fabricators . | . . . Repair Stations . | . . . Recycling Units . | . . . Scanalyzers . | . . . Garrison Access . | . . . Total Hacks 32 | . 24 8 Successful 23 | . 15 8 Failed 9 | . 9 . Catastrophic 1 | . 1 . Database Lockouts . | . . . Manual 3 | . 3 . Terminals 24 | . 24 . Fabricators . | . . . Repair Stations . | . . . Recycling Units . | . . . Scanalyzers . | . . . Garrison Access . | . . . Terminal Hacks 23 | . 15 8 Record 5 | . . 5 Robot Analysis 1 | . 1 . Prototype ID Bank 1 | . 1 . Open Door 1 | . . 1 Branch Access Points 1 | . 1 . Emergency Access Points 2 | . 2 . Unreport Threat 1 | . 1 . Locate Traps 1 | . 1 . Disarm Traps 2 | . 2 . Reprogram Traps 1 | . 1 . Hauler Manifests 1 | . 1 . Registered Components 1 | . 1 . Zone Layout 3 | . 3 . Proto ID Catalog 1 | . . 1 Release Object 1 | . . 1 Fabricator Hacks . | . . . Repair Station Hacks . | . . . Recycling Unit Hacks . | . . . Scanalyzer . | . . . Garrison Access Hacks . | . . . Unauthorized Hacks . | . . . Terminals . | . . . Fabricators . | . . . Repair Stations . | . . . Recycling Units . | . . . Scanalyzers . | . . . Garrison Access . | . . . Data Cores Recovered . | . . . Used . | . . . Hacking Detections 5 | . 5 . Full Trace Events 5 | . 5 . Feedback Events 1 | . 1 . Corruption 1 | . 1 . Feedback Blocked . | . . . Robot Schematics Acquired . | . . . Robots Built . | . . . Authchips . | . . . Time . | . . . Total Robot Build Rating . | . . . Part Schematics Acquired . | . . . Parts Built . | . . . Authchips . | . . . Time . | . . . Total Part Build Rating . | . . . Part Studies Acquired . | . . . Parts Repaired . | . . . Time . | . . . Parts Recycled . | . . . Recycled Matter . | . . . Retrieved Matter . | . . . Retrieved Components . | . . . Parts Scanalyzed . | . . . Part Schematics Acquired . | . . . Parts Damaged . | . . . Bothacking | -11 -10 -10 ------------ Run | Yrd Mat Sub Used RIF Installer . | . . . Robots Hacked . | . . . Non-combat . | . . . Combat . | . . . Robot Hacks Applied . | . . . Relay Couplers Released . | . . . Fabnet Peak Effective % . | . . . Robots Rewired . | . . . Allies Hacked . | . . . Hacks Repelled . | . . . Allies | -11 -10 -10 -------- Run | Yrd Mat Sub Total Allies . | . . . Largest Group . | . . . Highest-Rated Group . | . . . Highest-Rated Ally . | . . . Total Orders . | . . . Ally Attacks . | . . . Total Damage . | . . . Kills . | . . . Allies Corrupted . | . . . Allies Melted . | . . . Intel | -11 -10 -10 ------- Run | Yrd Mat Sub Active Infowar (turns) . | . . . Robot Analysis Total 1 | . 1 . Derelict Logs Recovered . | . . . Drone Launches . | . . . Drone Recoveries . | . . . Exploration | -11 -10 -10 ------------- Run | Yrd Mat Sub Turns Passed 5854 | 70 1910 3874 Spaces Moved 1785 | 50 595 1140 Core 20 | 20 . . Treads 1765 | 30 595 1140 Legs . | . . . Wheels . | . . . Hover . | . . . Flight . | . . . Fastest Speed 50 | 50 160 240 Average Speed 258 | 118 238 274 Slowest Speed 460 | 160 320 460 Overloaded Moves . | . . . Propulsion Burnouts . | . . . Robots Hopped . | . . . Potential Cave-ins . | . . . Cave-ins Triggered . | . . . Exploration Rate (%) 58 | 4 89 81 Regions Visited 2 Branch Regions 1 Pre-discovered Areas 1 | . . 1 Known Exits Taken 2 | 1 1 . Unknown Exits Taken . | . . . Scrap Searched 6 | . . 6 Spaces Dug 3 | . 1 2 Terrain Destroyed 14 | . 12 2 Melee 2 | . . 2 Projectile 2 | . 2 . AOE 10 | . 10 . Terrain Rammed . | . . . Walls Destroyed . | . . . Machines Disabled . | . . . Actions | -11 -10 -10 --------- Run | Yrd Mat Sub Total 2768 | 60 966 1742 Wait 768 | . 295 473 Move 1783 | 49 594 1140 Hop . | . . . Pick Up 27 | 5 13 9 Fast Attach 4 | 2 . 2 Attach 18 | 4 6 8 Detach 6 | . 2 4 Swap 4 | . 1 3 Drop 9 | . 1 8 Fire 96 | . 53 43 Melee 52 | . . 52 Ram . | . . . Kick . | . . . Crush 1 | . 1 . Escape Stasis . | . . . Rewire . | . . . Trap . | . . . Miscellaneous . | . . . Route ------- -11/Scrapyard -10/Materials (discovered 6 exits: *Mat x3 / *Min x2 / *Sub) -10/Subcaves (discovered 3 exits: *Mat x2 / *Rec) History --------- Turn | Location | Event 4 | -11/Scrapyard | Identified exit to Materials 4 | -11/Scrapyard | Discovered exit to Materials (range 14) 71 | -11/Scrapyard | Entered Materials 71 | -10/Materials | Evolved 1 slot: Propulsion x1 311 | -10/Materials | Build established: Hacker-Mutant 371 | -10/Materials | Identified exit to Materials 371 | -10/Materials | Discovered exit to Materials (range 8) 378 | -10/Materials | Identified exit to Mines 1376 | -10/Materials | Discovered exit to Materials (range 16) 1950 | -10/Materials | Discovered exit to Materials (range 16) 1964 | -10/Materials | Identified exit to Subcaves 1964 | -10/Materials | Discovered exit to Subcaves (range 6) 1981 | -10/Materials | Entered Subcaves 2087 | -10/Subcaves | Identified exit to Recycling 2087 | -10/Subcaves | Discovered exit to Recycling (range 9) 2412 | -10/Subcaves | Visited 4L-MR0's lab 2459 | -10/Subcaves | Found Flightbrick 2610 | -10/Subcaves | Learned location of Zion (-7) 2610 | -10/Subcaves | Met a Zionite searching for "candidates" 2746 | -10/Subcaves | A swath of the cavern ceiling suddenly collapsed 3239 | -10/Subcaves | Identified exit to Materials 3239 | -10/Subcaves | Discovered exit to Materials (range 8) 3249 | -10/Subcaves | Shifting Twisted Machinery released Scrap Shield 3254 | -10/Subcaves | Shifting Twisted Machinery released Spk. Treads 3448 | -10/Subcaves | Core integrity fell below 50% 3472 | -10/Subcaves | Lost 3 parts (1p1n1w) 4460 | -10/Subcaves | Discovered exit to Materials (range 7) 4661 | -10/Subcaves | Found SUBCON Basin 4695 | -10/Subcaves | Core integrity fell below 20% 5298 | -10/Subcaves | Visited Clippyterm 5306 | -10/Subcaves | Learned Factory garrison access intel 5306 | -10/Subcaves | Learned 40 Factory zone layouts 5855 | -10/Subcaves | Destroyed by 8G-QBL(R) with Subdweller Machine Gun Last Messages --------------- 05685_ Sub. Power Source shoots sparks and powers down. 05729_ System corrupted: Component data lost. 05741_ Searching scrap... 05741_ Found Mak. Leg. 05741_ Found 57 Matter. 05746_ Searching scrap... 05746_ Found Sub. Power Source. 05746_ Found 48 Matter. 05769_ Searching scrap... 05769_ Found Battle Cannon. 05769_ Found 43 Matter. 05778_ Acquired Battle Cannon. 05803_ Searching scrap... 05803_ Found Battle Rifle. 05803_ Found 48 Matter. 05804_ Acquired 10 matter. 05817_ System corrupted: Weight Redist. System fused. 05846_ System corrupted: Battle Cannon rejected. Map ----- +----------------------------------------------------+ | ???????????????# | | ???????????????# ### | | ???????????????## ## ##?????? | | ???????????????# # ## ##??????? | | ???????????????## # #?##???????? | | ???????????????# ##??????????? | | ???????????????# #???????????? | | ???????????????## ## #???????????? | | ???????????????# # #??????????? | | ???????????????## ## ?????????? | | ???????????????# # ????????? | | ???????????????## ## #### #??????? | | ????????????????# ####????#??????? | | ???????????????## ##?????????????? | | ??????????????## ###???????????? | | ????????###???# ######??????? | | ???????##" #??## ##?????? | | ???????# ??## ##????? | | ???????# ??# #????? | | ???????? ###" #????? | | ???????? # #" #????? | | ????##### # ##????? | | ??### ## # #?????? | | ??#< ### # #" ### #????? | | ??# %#R## ## #??# #????? | | ??#< @ # #???# #????? | | ??#< # ] <## #????# ##???? | | ??#" #%= <## #??### #???? | | ??#%[ "#% <### #?## ????? | | ??## <"###* ### ## #????# | | ???#####?####??# #????# | | ????????????????# #????# | | ????????????????# #?###?# | | ?????????????????## #?## #?# | | ????????????????????# #### ### | | ????????????????????# ## # | | ??????????????##???## | | ??????????????# #### | | ??????????????# | | ??????????????## #### # | | ???????????????## ##?#### ## | | ????????????????### ##???####? | | ???????????????##### #####???? | | ???????????????# # # ##??? | | ???????????????# #??? | | ???????????????# #??? | | ??????????????## # #??? | | ??????????????# ## ## #??? | | ??????????????## #?## #?## | | ???????????????# # ##### ### | +----------------------------------------------------+ Best States ------------- Heat Dissipation 25 Energy Generation 15 Energy Capacity 250 Matter Stores 300 Matter Capacity 300 Sight Range 16 Terrain Scan Density 10 Additional Mass Support 6 Resistance: KI 35 Resistance: TH 35 Resistance: EX 35 Resistance: EM 35 Resistance: I 35 Resistance: S 35 Resistance: P 35 Evasion (%) 50 Recoil Reduction 3 Offensive Hacking 20 Item Schematics ----------------- None Robot Schematics ------------------ None Fabricated ------------ Nothing Repaired ---------- Nothing Studied --------- None Alien Tech Used ----------------- None Achievements -------------- None Challenges ------------ None Game ------ Seed DeflectorRecyclingDerivative Manual? 0 Play Time 00:17:27 Cumulative 100.4 hours Start 2025.11.17 @ 11:21:30 End 2025.11.17 @ 11:37:10 Sessions 1 Manual Loads 0 Difficulty Explorer Special Mode None Game No. 114 Rogue 0 Adventurer 0 Explorer 114 Win Type - Total 0 Types 0/0/0/0/0/0/0/0/0/0 Lore% 60 Gallery% 60 Achievement% 46 Wizard Run 0 Options --------- Layout 1 ASCII 0 Keyboard 0 Movement Mouse Keybinds 0 Fullscreen 1 Font 24/Smallcaps Map View 50x35 Zoom Use 0% Tactical HUD 1 Map Filters NONE Filters NONE Steam 1 RUN: 02ad4ae6-f7e7-4364-846b-ce5c320b8c81